bitfinex/quotes_SOLUSD_20241103
["timestamp","ask_amount","ask_price","bid_price","bid_amount"]
[1730605099515,0.2952233,162.01,162.0,38.15738094]
[1730605100630,0.2952233,162.01,162.0,58.15738094]
[1730605103128,0.2952233,162.01,162.0,49.949684]
[1730605103429,0.2952233,162.01,162.0,29.949684]
[1730605106324,0.2952233,162.01,162.0,6.1728]
[1730605106519,0.2952233,162.01,161.99,21.6061]
[1730605106912,0.2952233,162.01,161.99,29.81379694]
[1730605107521,0.2952233,162.01,161.99,21.6061]
[1730605108332,0.2952233,162.01,161.97,29.950784]
[1730605108515,0.2952233,162.01,161.97,45.385684]
[1730605108516,8.50292024,162.01,161.97,45.385684]
[1730605108712,8.50292024,162.01,161.97,21.6088]
[1730605108926,8.20769694,161.98,161.93,39.08449694]
[1730605109130,8.20769694,161.98,161.94,21.6127]
[1730605110326,8.20769694,161.99,161.94,29.82039694]
[1730605111036,8.20769694,162.0,161.95,31.98458094]
[1730605111813,8.20769694,162.0,161.96,6.1743]
[1730605112032,8.50292024,162.01,161.96,29.81789694]
[1730605112239,8.50292024,162.01,161.98,8.20769694]
[1730605112240,0.2952233,162.01,161.98,8.20769694]
[1730605112519,0.2952233,162.01,161.99,8.20769694]
[1730605112937,0.2952233,162.01,161.98,8.20769694]
[1730605113816,0.2952233,162.01,162.0,6.1728]
[1730605118842,0.2952233,162.01,162.0,14.38049694]
[1730605120921,0.2952233,162.01,162.0,6.1728]
[1730605123040,0.2952233,162.01,162.0,38.15738094]
[1730605125632,0.2952233,162.01,162.0,58.15738094]
[1730605141169,0.2952233,162.01,162.0,91.0881687]
[1730605141783,2.33e-05,162.01,162.0,91.0881687]
[1730605141960,2.33e-05,162.01,162.0,58.15738094]
[1730605148556,2.33e-05,162.01,162.0,91.0881687]
[1730605149154,2.33e-05,162.01,162.0,58.25738094]
[1730605150536,2.33e-05,162.01,162.0,58.15738094]
[1730605150937,2.33e-05,162.01,162.0,26.1728]
[1730605151338,2.33e-05,162.01,162.0,34.38049694]
[1730605151545,2.33e-05,162.01,162.0,26.1728]
[1730605153350,2.33e-05,162.01,162.0,29.949684]
[1730605153746,2.33e-05,162.01,161.99,15.4327]
[1730605153963,8.20772024,162.01,161.97,6.1739]
[1730605154265,8.20769694,162.0,161.97,6.1739]
[1730605154470,8.20769694,161.99,161.96,21.6098]
[1730605155438,8.20769694,161.99,161.96,15.4356]
[1730605155839,8.20769694,162.0,161.96,15.4356]
[1730605156171,2.33e-05,162.01,161.99,23.776884]
[1730605157361,2.33e-05,162.01,162.0,6.1728]
[1730605158558,2.33e-05,162.01,162.0,38.15738094]
[1730605158771,2.33e-05,162.01,162.0,29.949684]
[1730605161568,2.33e-05,162.01,162.0,58.15738094]
[1730605162745,2.33e-05,162.01,162.0,49.949684]
[1730605163350,2.33e-05,162.01,161.99,8.20769694]
[1730605163560,2.33e-05,162.01,161.99,14.38049694]
[1730605164345,2.33e-05,162.01,161.99,6.1728]
[1730605165758,2.33e-05,162.01,161.99,23.776884]
[1730605166158,2.33e-05,162.01,161.98,21.6066]
[1730605167080,2.33e-05,162.01,161.98,23.64069694]
[1730605168075,2.33e-05,162.01,162.0,8.20769694]
[1730605168275,2.33e-05,162.01,162.0,31.98458094]
[1730605168572,2.33e-05,162.01,162.0,23.776884]
[1730605169368,2.33e-05,162.01,162.0,29.949684]
[1730605169575,2.33e-05,162.01,162.0,38.15738094]
[1730605170051,2.33e-05,162.01,162.0,58.15738094]
[1730605174282,2.33e-05,162.01,162.0,90.9881687]
[1730605175369,2.33e-05,162.01,162.0,93.50439981]
[1730605176577,2.33e-05,162.01,162.0,60.67361205]
[1730605176874,2.33e-05,162.01,162.0,58.15738094]
[1730605178476,2.33e-05,162.01,162.0,91.0881687]
[1730605179257,2.33e-05,162.01,162.0,58.25738094]
[1730605179674,2.33e-05,162.01,162.0,58.15738094]
[1730605179979,2.33e-05,162.01,162.0,58.25738094]
[1730605180185,2.33e-05,162.01,162.0,91.0881687]
[1730605180353,2.33e-05,162.01,162.0,106.7884687]
[1730605180777,2.33e-05,162.01,162.0,109.30445415]
[1730605181883,2.33e-05,162.01,162.0,106.7884687]
[1730605182178,2.33e-05,162.01,162.0,109.30354102]
[1730605183759,2.33e-05,162.01,162.0,106.7884687]
[1730605183955,2.33e-05,162.01,162.0,109.30131639]
[1730605184379,2.33e-05,162.01,162.0,106.7884687]
[1730605184680,2.33e-05,162.01,162.0,73.95768094]
[1730605185376,0.2952233,162.09,162.03,0.1]
[1730605185575,0.2952233,162.09,162.06,8.20769694]
[1730605185759,0.2952233,162.09,162.05,8.20769694]
[1730605185957,8.50292024,162.09,162.04,20.0]
[1730605187177,8.50292024,162.09,162.05,21.5982]
[1730605187378,8.00292024,162.09,162.06,23.776884]
[1730605188589,8.00292024,162.09,162.06,29.947184]
[1730605189268,14.37659694,162.11,162.06,29.947184]
[1730605189979,8.20769694,162.11,162.06,53.58118094]
[1730605190283,8.20769694,162.12,162.06,53.58118094]
[1730605190503,8.20769694,162.12,162.07,8.20769694]
[1730605190686,8.20769694,162.12,162.08,23.776884]
[1730605191280,8.20769694,162.1,162.07,23.776884]
[1730605191502,15.8091,162.13,162.07,23.776884]
[1730605191779,8.20769694,162.15,162.11,21.5902]
[1730605191984,8.20769694,162.15,162.12,23.776884]
[1730605192284,8.20769694,162.13,162.11,15.4216]
[1730605194687,8.20769694,162.12,162.08,15.424]
[1730605194883,8.20769694,162.1,162.07,20.0]
[1730605195586,8.20769694,162.13,162.07,28.20769694]
[1730605195779,8.20769694,162.11,162.07,20.0]
[1730605195981,8.20769694,162.11,162.08,23.776884]
[1730605196492,8.20769694,162.1,162.07,23.776884]
[1730605196672,8.20769694,162.11,162.07,29.946884]
[1730605199489,8.20769694,162.1,162.07,29.946884]
[1730605199670,8.20769694,162.09,162.07,29.946884]
[1730605199983,8.20769694,162.1,162.06,21.5968]
[1730605200189,8.20769694,162.09,162.06,21.5968]
[1730605200683,8.20769694,162.07,162.03,35.4289]
[1730605200886,8.20769694,162.06,162.03,35.4289]
[1730605201071,8.20769694,162.08,162.03,43.63659694]
[1730605201273,8.20769694,162.08,162.03,35.4289]
[1730605201476,8.20769694,162.08,162.03,41.6003]
[1730605201794,8.20769694,162.07,162.03,41.6003]
[1730605202289,8.20769694,162.07,162.04,23.776884]
[1730605203079,8.20769694,162.08,162.04,29.947984]
[1730605203769,8.20769694,162.1,162.04,53.58388094]
[1730605204380,8.20769694,162.07,162.04,45.376184]
[1730605205088,8.20769694,162.08,162.04,45.376184]
[1730605206391,8.20769694,162.09,162.04,45.376184]
[1730605207491,8.20769694,162.08,162.03,6.1716]
[1730605207687,8.20769694,162.07,162.02,26.172]
[1730605208894,14.37799694,162.07,162.02,26.172]
[1730605209275,8.20769694,162.05,162.01,23.776884]
[1730605209988,8.20769694,162.06,162.01,23.776884]
[1730605210497,8.20769694,162.06,162.01,29.949084]
[1730605210791,8.20769694,162.05,162.01,29.949084]
[1730605210989,8.20769694,162.06,162.01,53.58788094]
[1730605211384,23.24939694,162.08,162.03,31.98458094]
[1730605211590,8.20769694,162.08,162.03,8.20769694]
[1730605212365,14.37739694,162.09,162.03,8.20769694]
[1730605212572,8.20769694,162.09,162.04,45.376384]
[1730605212769,8.20769694,162.09,162.04,53.58408094]
[1730605212976,14.37679694,162.1,162.04,53.58408094]
[1730605213181,14.37639694,162.11,162.06,8.20769694]
[1730605213396,8.20769694,162.09,162.04,53.58408094]
[1730605215797,8.20769694,162.1,162.06,6.1705]
[1730605216379,6.1687,162.11,162.06,29.80449694]
[1730605217301,8.20769694,162.12,162.07,31.98458094]
[1730605217488,8.20769694,162.13,162.08,8.20769694]
[1730605217991,8.20769694,162.14,162.08,8.20769694]
[1730605218192,8.20769694,162.13,162.08,8.20769694]
[1730605218493,14.37569694,162.13,162.08,14.37729694]
[1730605219291,8.20769694,162.12,162.08,6.1696]
[1730605222396,8.20769694,162.13,162.08,6.1696]
[1730605223518,8.20769694,162.13,162.09,23.776884]
[1730605223697,14.37519694,162.14,162.09,31.98458094]
[1730605224496,8.20769694,162.13,162.09,23.776884]
[1730605224880,8.20769694,162.13,162.09,29.946284]
[1730605225085,14.37519694,162.14,162.09,29.946284]
[1730605225585,8.20769694,162.13,162.09,29.946284]
[1730605226691,8.20769694,162.14,162.09,45.369784]
[1730605228286,14.37519694,162.14,162.09,45.369784]
[1730605228516,8.20769694,162.13,162.09,45.369784]
[1730605229197,8.20769694,162.12,162.09,45.369784]
[1730605229502,8.20769694,162.11,162.07,23.776884]
[1730605230005,8.20769694,162.12,162.07,23.776884]
[1730605230387,6.1671,162.15,162.07,23.776884]
[1730605230388,8.20769694,162.11,162.07,23.776884]
[1730605231296,8.20769694,162.11,162.08,6.1697]
[1730605231501,8.20769694,162.12,162.08,6.1697]
[1730605231801,8.20769694,162.11,162.07,29.946984]
[1730605232790,8.20769694,162.11,162.07,45.372384]
[1730605233119,8.20769694,162.12,162.07,45.372384]
[1730605233789,8.20769694,162.13,162.07,53.58008094]
[1730605234104,8.20769694,162.14,162.08,8.20769694]
[1730605234893,6.1671,162.15,162.08,8.20769694]
[1730605234894,8.20769694,162.15,162.09,31.98458094]
[1730605236114,8.20769694,162.15,162.1,21.5915]
[1730605237191,8.20769694,162.14,162.1,21.5915]
[1730605240003,8.20769694,162.13,162.1,21.5915]
[1730605240910,8.20769694,162.14,162.1,21.5915]
[1730605244218,8.20769694,162.14,162.11,23.776884]
[1730605245303,8.20769694,162.15,162.11,23.776884]
[1730605245504,8.20769694,162.15,162.12,6.1682]
[1730605247324,8.20769694,162.14,162.12,6.1682]
[1730605249021,8.20769694,162.15,162.12,6.1682]
[1730605250217,8.20769694,162.14,162.12,6.1682]
[1730605255227,8.20769694,162.15,162.12,6.1682]
[1730605255811,8.20769694,162.15,162.1,21.5915]
[1730605256227,8.20769694,162.15,162.1,29.79919694]
[1730605256819,8.20769694,162.15,162.1,21.5915]
[1730605257228,8.20769694,162.15,162.1,29.79919694]
[1730605257435,8.20769694,162.15,162.11,23.776884]
[1730605259432,8.20769694,162.14,162.12,6.1682]
[1730605259929,8.20769694,162.13,162.1,15.4225]
[1730605260112,8.20769694,162.11,162.08,20.0]
[1730605260311,8.20769694,162.12,162.08,20.0]
[1730605260621,8.20769694,162.15,162.1,28.20769694]
[1730605260819,8.20769694,162.15,162.09,8.20769694]
[1730605261137,8.20769694,162.14,162.1,20.0]
[1730605261428,8.20769694,162.12,162.09,15.423]
[1730605262419,8.20769694,162.11,162.09,15.423]
[1730605262621,8.20769694,162.12,162.09,15.423]
[1730605263635,8.20769694,162.13,162.09,15.423]
[1730605264107,8.20769694,162.13,162.1,20.0]
[1730605265607,8.20769694,162.13,162.11,6.1686]
[1730605266009,8.20769694,162.13,162.11,21.5902]
[1730605266420,8.20769694,162.14,162.11,21.5902]
[1730605267016,8.20769694,162.13,162.11,21.5902]
[1730605268134,8.20769694,162.13,162.09,43.776884]
[1730605269215,8.20769694,162.13,162.11,23.776884]
[1730605270146,8.20769694,162.13,162.1,21.5915]
[1730605270317,8.20769694,162.12,162.1,21.5915]
[1730605271148,8.20769694,162.13,162.1,21.5915]
[1730605272232,8.20769694,162.12,162.1,21.5915]
[1730605273049,8.20769694,162.11,162.1,21.5915]
[1730605274611,8.20769694,162.12,162.1,21.5915]
[1730605276529,8.20769694,162.13,162.1,21.5915]
[1730605277742,0.2952233,162.17,162.1,21.5915]
[1730605277743,8.20769694,162.14,162.1,21.5915]
[1730605278842,6.1671,162.16,162.1,21.5915]
[1730605279039,8.20769694,162.12,162.1,21.5915]
[1730605279541,8.20769694,162.14,162.11,23.776884]
[1730605280743,8.20769694,162.14,162.12,21.5888]
[1730605280949,8.20769694,162.13,162.12,21.5888]
[1730605281246,24.81919694,162.13,162.04,15.4279]
[1730605281547,8.20769694,162.05,162.04,15.4279]
[1730605282649,8.20769694,162.05,162.02,23.776884]
[1730605282853,8.20769694,162.04,162.02,23.776884]
[1730605283148,8.20769694,162.04,162.01,21.6035]
[1730605283650,8.20769694,162.07,162.03,20.0]
[1730605283831,8.20769694,162.06,162.03,20.0]
[1730605284656,8.20769694,162.06,162.04,6.1713]
[1730605286632,8.20769694,162.07,162.04,6.1713]
[1730605291558,8.20769694,162.08,162.04,6.1713]
[1730605294554,8.20769694,162.06,162.01,8.20769694]
[1730605294745,8.20769694,162.04,162.0,30.8635]
[1730605295254,8.20769694,162.05,162.01,21.6034]
[1730605295635,8.20769694,162.06,162.01,21.6034]
[1730605296754,8.20769694,162.05,162.01,21.6034]
[1730605297151,14.37839694,162.06,162.01,21.6034]
[1730605297456,8.20769694,162.08,162.02,8.20769694]
[1730605297657,8.20769694,162.07,162.01,29.81109694]
[1730605298755,8.20769694,162.07,162.02,8.20769694]
[1730605299064,8.20769694,162.07,162.01,29.81109694]
[1730605299354,14.37789694,162.07,162.01,29.81109694]
[1730605301651,8.20769694,162.08,162.01,29.81109694]
[1730605301953,8.20769694,162.08,162.02,8.20769694]
[1730605302846,14.37759694,162.08,162.03,6.1716]
[1730605306739,14.37759694,162.08,162.01,23.63879694]
[1730605307762,14.37759694,162.08,162.01,15.4311]
[1730605307763,8.20769694,162.04,162.01,15.4311]
[1730605309458,8.20769694,162.03,161.99,6.1732]
[1730605309776,8.20769694,162.02,161.98,21.6069]
[1730605309959,8.20769694,162.01,161.98,15.4334]
[1730605311057,8.20769694,162.01,161.96,6.1742]
[1730605311361,14.38049694,162.0,161.96,6.1742]
[1730605311744,14.38049694,162.0,161.95,8.20769694]
[1730605311745,14.38049694,162.0,161.95,14.38229694]
[1730605312263,14.38049694,162.0,161.95,29.81909694]
[1730605312637,8.20769694,162.0,161.95,29.81909694]
[1730605313246,14.38019694,162.01,161.96,8.20769694]
[1730605313458,7.607181,162.07,161.95,21.6114]
[1730605313459,8.20769694,162.02,161.97,8.20769694]
[1730605313769,8.20769694,162.03,161.97,8.20769694]
[1730605314443,8.20769694,162.02,161.97,8.20769694]
[1730605314643,8.20769694,162.02,161.97,14.38139694]
[1730605315473,14.37979694,162.02,161.97,14.38139694]
[1730605315965,14.37979694,162.02,161.97,6.1737]
[1730605317952,0.2,162.05,161.97,6.1737]
[1730605317953,8.20769694,162.01,161.97,6.1737]
[1730605321850,8.20769694,162.01,161.95,23.64449694]
[1730605322252,8.20769694,162.02,161.97,8.20769694]
[1730605322552,8.20769694,162.04,161.98,8.20769694]
[1730605323556,8.20769694,162.04,161.99,21.6062]
[1730605326778,8.20769694,162.05,161.99,29.81389694]
[1730605327467,8.20769694,162.05,162.0,8.20769694]
[1730605328663,8.20769694,162.05,162.01,21.6035]
[1730605331360,8.20769694,162.03,161.99,6.1732]
[1730605331560,8.20769694,162.02,161.99,6.1732]
[1730605332362,8.20769694,162.02,161.98,37.8369]
[1730605332563,8.20769694,162.01,161.98,21.6069]
[1730605333572,8.20769694,162.01,161.98,15.4335]
[1730605336176,8.20769694,162.04,161.98,23.64119694]
[1730605336365,8.20769694,162.04,161.99,8.20769694]
[1730605337259,8.20769694,162.06,162.0,24.43769694]
[1730605337462,14.37699694,162.1,162.04,8.20769694]
[1730605337658,8.20769694,162.1,162.05,8.20769694]
[1730605337874,8.20769694,162.11,162.06,8.20769694]
[1730605338085,8.20769694,162.11,162.07,6.1701]
[1730605338684,8.20769694,162.09,162.06,21.5967]
[1730605339786,8.20769694,162.09,162.06,15.4262]
[1730605340609,8.20769694,162.1,162.06,15.4262]
[1730605342974,8.20769694,162.11,162.06,15.4262]
[1730605343575,8.20769694,162.11,162.06,23.63389694]
[1730605343779,8.20769694,162.15,162.1,8.20769694]
[1730605344091,8.20769694,162.15,162.09,8.20769694]
[1730605344280,8.20769694,162.14,162.09,8.20769694]
[1730605344690,8.20769694,162.14,162.08,51.98458094]
[1730605344901,8.20769694,162.12,162.08,20.0]
[1730605345198,8.20769694,162.11,162.08,6.1694]
[1730605345385,8.20769694,162.12,162.08,21.5938]
[1730605347787,8.20769694,162.13,162.08,29.80149694]
[1730605348111,8.20769694,162.14,162.08,29.80149694]
[1730605349084,8.20769694,162.11,162.08,21.5938]
[1730605349296,8.20769694,162.1,162.08,15.4244]
[1730605350876,8.20769694,162.09,162.06,16.2041]
[1730605351080,0.1,162.15,162.05,21.5975]
[1730605351081,8.20769694,162.08,162.05,15.4269]
[1730605353483,8.20769694,162.07,162.05,15.4269]
[1730605354597,8.20769694,162.08,162.05,15.4269]
[1730605355886,8.20769694,162.07,162.05,15.4269]
[1730605356394,8.20769694,162.08,162.05,15.4269]
[1730605356909,8.20769694,162.07,162.05,15.4269]
[1730605358203,8.20769694,162.06,162.02,47.0641]
[1730605358510,8.20769694,162.04,162.03,6.1716]
[1730605359198,8.20769694,162.05,162.02,15.43]
[1730605360613,6.1699,162.08,162.0,6.1728]
[1730605360614,8.20769694,162.03,162.0,6.1728]
[1730605361297,8.20769694,162.03,161.99,21.6058]
[1730605362912,8.20769694,162.01,161.95,8.20769694]
[1730605363094,8.20769694,162.0,161.95,6.1747]
[1730605363414,8.20769694,162.0,161.95,14.38239694]
[1730605364497,8.20769694,162.0,161.96,21.6102]
[1730605364810,8.20769694,162.01,161.96,21.6102]
[1730605365389,8.20769694,162.02,161.96,29.81789694]
[1730605365620,8.20769694,162.02,161.97,8.20769694]
[1730605366812,8.20769694,162.02,161.98,21.6076]
[1730605367010,8.20769694,162.03,161.98,21.6076]
[1730605367189,8.20769694,162.03,161.98,29.81529694]
[1730605368107,8.20769694,162.03,161.98,21.6076]
[1730605370913,6.1703,162.07,161.96,43.776884]
[1730605371113,8.20769694,162.06,162.0,8.20769694]
[1730605371815,8.20769694,162.06,162.0,14.87329694]
[1730605372114,8.20769694,162.06,162.01,8.20769694]
[1730605372810,8.20769694,162.09,162.04,6.1713]
[1730605373012,6.1693,162.1,162.04,6.1713]
[1730605373219,8.20769694,162.06,162.02,15.6145]
[1730605373421,8.20769694,162.06,162.04,15.4282]
[1730605375111,8.20769694,162.05,162.0,21.6037]
[1730605375420,8.20769694,162.04,162.0,21.6037]
[1730605380131,8.20769694,162.05,162.0,21.6037]
[1730605380301,8.20769694,162.05,162.0,29.81139694]
[1730605380506,8.20769694,162.06,162.01,8.20769694]
[1730605381226,8.20769694,162.06,162.02,21.6021]
[1730605381398,8.20769694,162.07,162.02,21.6021]
[1730605381821,8.20769694,162.07,162.02,29.80979694]
[1730605382037,8.20769694,162.08,162.03,31.98458094]
[1730605383104,8.20769694,162.08,162.04,21.5995]
[1730605383629,8.20769694,162.07,162.04,21.5995]
[1730605384130,8.20769694,162.08,162.04,21.5995]
[1730605386213,8.20769694,162.09,162.04,21.5995]
[1730605386505,8.20769694,162.07,162.04,21.5995]
[1730605386830,8.20769694,162.08,162.04,21.5995]
[1730605389125,91.32049254,162.15,162.04,21.5995]
[1730605389126,8.20769694,162.11,162.05,31.98458094]
[1730605389322,8.20769694,162.09,162.05,23.776884]
[1730605389536,8.20769694,162.08,162.04,21.5995]
[1730605391149,8.20769694,162.07,162.04,15.4282]
[1730605392631,8.20769694,162.08,162.04,15.4282]
[1730605394445,8.20769694,162.07,162.04,15.4282]
[1730605395051,8.20769694,162.08,162.04,15.4282]
[1730605396548,8.20769694,162.09,162.04,15.4282]
[1730605397432,8.20769694,162.1,162.04,23.63589694]
[1730605397646,8.20769694,162.1,162.05,8.20769694]
[1730605397849,8.20769694,162.11,162.05,8.20769694]
[1730605398651,8.20769694,162.1,162.06,21.5968]
[1730605399342,8.20769694,162.11,162.06,21.5968]
[1730605401131,8.20769694,162.13,162.07,36.0222]
[1730605401345,8.20769694,162.13,162.08,8.20769694]
[1730605401548,8.20769694,162.12,162.08,23.776884]
[1730605402552,8.20769694,162.12,162.09,21.5929]
[1730605402744,8.20769694,162.11,162.09,21.5929]
[1730605403439,8.20769694,162.1,162.09,21.5929]
[1730605405136,8.20769694,162.1,162.09,15.4235]
[1730605409951,8.20769694,162.11,162.09,15.4235]
[1730605416863,8.20769694,162.12,162.09,15.4235]
[1730605420162,8.20769694,162.11,162.09,15.4235]
[1730605426260,8.20769694,162.1,162.06,21.5962]
[1730605426573,8.20769694,162.09,162.06,21.5962]
[1730605427371,6.1676,162.14,162.06,15.426]
[1730605427372,8.20769694,162.1,162.06,15.426]
[1730605427969,8.20769694,162.08,162.06,15.426]
[1730605429969,8.20769694,162.07,162.04,21.5995]
[1730605430166,8.20769694,162.08,162.04,21.5995]
[1730605430851,8.20769694,162.08,162.04,15.4282]
[1730605431061,8.20769694,162.08,162.04,21.5995]
[1730605432079,8.20769694,162.11,162.06,8.20769694]
[1730605432569,8.20769694,162.11,162.05,31.98458094]
[1730605433063,8.20769694,162.11,162.06,21.5968]
[1730605436882,8.20769694,162.1,162.06,21.5968]
[1730605437065,8.20769694,162.09,162.06,21.5968]
[1730605438459,8.20769694,162.09,162.06,15.4263]
[1730605440765,8.20769694,162.08,162.04,6.1713]
[1730605441074,8.20769694,162.08,162.04,21.5995]
[1730605441677,8.20769694,162.09,162.04,21.5995]
[1730605441869,8.20769694,162.16,162.09,42.3649]
[1730605442375,8.20769694,162.15,162.09,42.3649]
[1730605442581,8.20769694,162.15,162.1,23.776884]
[1730605442877,8.20769694,162.15,162.11,6.1686]
[1730605443378,6.4616233,162.17,162.11,6.1686]
[1730605443379,0.2952233,162.17,162.13,8.20769694]
[1730605443769,6.4615233,162.17,162.11,21.5902]
[1730605444080,8.20769694,162.14,162.11,21.5902]
[1730605444461,8.20769694,162.14,162.11,15.4216]
[1730605445296,8.20769694,162.12,162.09,42.4711]
[1730605445474,8.20769694,162.13,162.09,42.4711]
[1730605446467,8.20769694,162.13,162.09,22.4711]
[1730605449182,0.2952233,162.17,162.07,15.425]
[1730605449183,8.20769694,162.11,162.07,15.425]
[1730605449487,8.20769694,162.08,162.02,6.1717]
[1730605449688,8.20769694,162.06,162.02,6.1717]
[1730605450494,8.20769694,162.05,162.02,6.1717]
[1730605450785,8.20769694,162.04,162.01,37.7839]
[1730605450995,8.20769694,162.05,162.01,37.7839]
[1730605452163,8.20769694,162.06,162.01,37.7839]
[1730605453793,8.20769694,162.05,162.01,37.7839]
[1730605454087,8.20769694,162.09,162.03,52.08458094]
[1730605454292,8.20769694,162.13,162.08,23.776884]
[1730605454468,6.1667,162.16,162.08,31.98458094]
[1730605454676,8.20769694,162.13,162.08,23.776884]
[1730605455188,8.20769694,162.12,162.08,23.776884]
[1730605455376,8.20769694,162.12,162.07,23.776884]
[1730605455898,8.20769694,162.12,162.08,21.5941]
[1730605456393,8.20769694,162.15,162.09,23.776884]
[1730605456571,8.20769694,162.15,162.1,8.20769694]
[1730605457593,8.20769694,162.15,162.11,21.5902]
[1730605457806,8.20769694,162.14,162.11,21.5902]
[1730605459305,8.20769694,162.13,162.11,21.5902]
[1730605459478,8.20769694,162.12,162.08,16.1805]
[1730605459676,8.20769694,162.1,162.08,15.4244]
[1730605459883,8.20769694,162.1,162.08,21.5941]
[1730605460072,8.20769694,162.09,162.08,21.5941]
[1730605460272,8.20769694,162.09,162.08,15.4244]
[1730605460486,8.20769694,162.09,162.07,6.1701]
[1730605460711,8.20769694,162.08,162.07,6.1701]
[1730605461872,8.20769694,162.08,162.05,21.598]
[1730605462075,8.20769694,162.09,162.05,21.598]
[1730605463381,8.20769694,162.11,162.05,29.80569694]
[1730605466375,8.20769694,162.1,162.05,29.80569694]
[1730605466575,8.20769694,162.1,162.05,21.598]
[1730605467802,8.20769694,162.13,162.07,8.20769694]
[1730605467981,8.20769694,162.15,162.09,8.20769694]
[1730605468475,8.20769694,162.15,162.06,43.776884]
[1730605469088,8.20769694,162.14,162.08,8.20769694]
[1730605469300,8.20769694,162.14,162.09,23.776884]
[1730605469597,8.20769694,162.13,162.07,29.80319694]
[1730605469778,8.20769694,162.13,162.08,23.776884]
[1730605470598,8.20769694,162.13,162.09,21.5929]
[1730605472785,8.20769694,162.14,162.09,21.5929]
[1730605473095,8.20769694,162.13,162.09,21.5929]
[1730605479495,6.1671,162.15,162.09,21.5929]
[1730605479496,8.20769694,162.14,162.09,21.5929]
[1730605483417,8.20769694,162.13,162.09,21.5929]
[1730605485098,8.20769694,162.14,162.09,21.5929]
[1730605486514,8.20769694,162.14,162.09,29.80059694]
[1730605487401,8.20769694,162.16,162.1,8.20769694]
[1730605488404,8.20769694,162.16,162.11,21.5902]
[1730605488614,8.20769694,162.15,162.11,21.5902]
[1730605489892,8.20769694,162.16,162.11,21.5902]
[1730605493013,8.50292024,162.17,162.13,21.5875]
[1730605493392,8.20769694,162.16,162.13,21.5875]
[1730605496212,8.20769694,162.15,162.13,15.4197]
[1730605497326,8.20769694,162.15,162.09,39.05469694]
[1730605497502,8.20769694,162.16,162.1,60.64429694]
[1730605497811,8.20769694,162.15,162.1,60.64429694]
[1730605498516,8.20769694,162.15,162.1,52.4366]
[1730605499514,6.4616233,162.17,162.1,21.5915]
[1730605499515,8.20769694,162.14,162.1,21.5915]
[1730605499718,8.20769694,162.15,162.1,21.5915]
[1730605501020,8.20769694,162.16,162.1,29.79919694]
[1730605501719,8.20769694,162.15,162.1,21.5915]
[1730605503701,8.20769694,162.11,162.1,21.5915]
[1730605504014,8.50292024,162.17,162.1,8.20769694]
[1730605504223,0.2952233,162.17,162.09,6.5167]
[1730605504724,8.20769694,162.14,162.09,6.5167]
[1730605505022,8.20769694,162.13,162.08,20.0]
[1730605505825,8.20769694,162.11,162.09,15.4235]
[1730605506025,38.99748776,162.16,162.09,15.4235]
[1730605506026,8.20769694,162.12,162.09,15.4235]
[1730605506502,8.20769694,162.11,162.09,15.4235]
[1730605508117,8.20769694,162.1,162.09,15.4235]
[1730605508609,8.20769694,162.1,162.07,6.1701]
[1730605508810,8.20769694,162.08,162.05,15.4264]
[1730605509023,8.20769694,162.12,162.06,8.20769694]
[1730605509806,8.20769694,162.12,162.05,29.80489694]
[1730605510205,8.20769694,162.12,162.06,23.776884]
[1730605510708,8.20769694,162.11,162.06,23.776884]
[1730605511134,8.20769694,162.12,162.07,21.5955]
[1730605512815,0.2952233,162.17,162.11,8.20769694]
[1730605513129,0.2952233,162.17,162.15,21.5849]
[1730605513836,0.2952233,162.17,162.15,15.4178]
[1730605514414,8.20769694,162.16,162.12,15.4206]
[1730605514625,8.20769694,162.15,162.12,15.4206]
[1730605514935,8.20769694,162.13,162.08,39.29609694]
[1730605515237,8.20769694,162.12,162.09,6.1694]
[1730605515530,8.20769694,162.11,162.09,21.5929]
[1730605516225,8.20769694,162.1,162.06,15.4263]
[1730605516531,8.20769694,162.07,162.04,6.1712]
[1730605516712,8.20769694,162.05,162.03,21.6005]
[1730605517231,8.20769694,162.05,162.03,15.429]
[1730605518014,8.20769694,162.06,162.03,15.429]
[1730605518411,8.20769694,162.04,162.01,6.1724]
[1730605518638,8.20769694,162.03,162.01,6.1724]
[1730605520248,8.20769694,162.04,162.01,6.1724]
[1730605521113,8.20769694,162.03,162.01,6.1724]
[1730605521838,8.20769694,162.04,162.01,6.1724]
[1730605522042,8.20769694,162.05,162.01,21.6035]
[1730605523137,8.20769694,162.06,162.01,21.6035]
[1730605523332,8.20769694,162.08,162.02,8.20769694]
[1730605523640,8.20769694,162.07,162.02,8.20769694]